[Event "47th GRE-chT 2019"]
[Site "Patra"]
[Date "2019.07.05"]
[Round "5.38"]
[White "Kazakos, Markos"]
[Black "Gkikas, Vasilios"]
[Result "1-0"]
[ECO "A37"]
[WhiteElo "2069"]
[BlackElo "1950"]
[Annotator "NA RC"]
[PlyCount "71"]
[EventDate "2019.07.02"]
[EventCountry "GRE"]
[SourceTitle "playchess.com"]
[Source "ChessBase"]
[SourceQuality "1"]
[TimeControl "5400+30"]

1. Nf3 {[%emt 0:00:16]} c5 {[%emt 0:00:00]} 2. g3 {[%emt 0:00:07]} g6 {[%emt 0:01:09]} 3. Bg2 {[%emt 0:00:24]} Bg7 {[%emt 0:01:53]} 4. c4 {[%emt 0:00:11]} Nc6 {[%emt 0:00:09]} 5. Nc3 {[%emt 0:00:32]} e5 {[%emt 0:01:23]} 6. O-O {[%emt 0:00:15]} Nge7 {[%emt 0:01:23]} 7. Ne1 {[%emt 0:00:42]} O-O {[%emt 0:00:23]} 8. Nc2 {[%emt 0:00:46]} d6 {[%emt 0:00:33]} 9. Ne3 {[%emt 0:00:18]} Rb8 {[%emt 0:03:29]} 10. Rb1 {[%emt 0:02:49]} a6 {[%emt 0:02:33]} 11. a3 {[%emt 0:01:59]} b5 {[%emt 0:02:31]} 12. cxb5 {[%emt 0:00:07]} axb5 {[%emt 0:00:15]} 13. b4 {[%emt 0:00:24]} cxb4 {[%emt 0:00:10]} 14. axb4 {[%emt 0:00:39]} Be6 {[%emt 0:00:43]} 15. Ned5 {[%emt 0:00:24]} Nxd5 {[%emt 0:07:00]} 16. Nxd5 {[%emt 0:00:28]} Ne7 {[%emt 0:04:39]} 17. Qb3 {[%emt 0:00:27]} Kh8 {[%emt 0:03:09]} 18. d3 {[%emt 0:04:35]} h6 {[%emt 0:13:25]} 19. Bd2 {[%emt 0:04:22]} Qd7 {[%emt 0:08:47]} 20. Ra1 {[%emt 0:04:51]} Rfc8 {[%emt 0:08:17]} 21. Ra6 {[%emt 0:08:40]} Rc6 {[%emt 0:14:02]} 22. Rfa1 {[%emt 0:07:19]} Rxa6 {[%emt 0:00:06]} 23. Rxa6 {[%emt 0:08:13]} Nc6 {[%emt 0:03:41]} 24. Qa3 {[%emt 0:12:57]} Ne7 {[%emt 0:03:55]} 25. Ra7 {[%emt 0:00:13]} Rb7 {[%emt 0:04:02]} 26. Ra8+ {[%emt 0:00:20]} Kh7 {[%emt 0:01:05]} 27. Nxe7 {[%emt 0:00:53]} Qxe7 {[%emt 0:00:53]} 28. Bxb7 {[%emt 0:00:05]} Qxb7 {[%emt 0:00:33]} 29. Ra7 {[%emt 0:04:12]} Qb6 {[%emt 0:08:30]} 30. Ra6 {[%emt 0:03:20]} Qc7 {[%emt 0:01:32]} 31. Qc3 {[%emt 0:00:28]} Qb8 {[%emt 0:02:05]} 32. Qc6 {[%emt 0:01:12]} d5 {[%emt 0:00:24]} 33. Ra8 {[%emt 0:02:46]} Bd7 {[%emt 0:00:13]} 34. Qxd5 {[%emt 0:03:19]} Be6 {[%emt 0:00:20]} 35. Rxb8 {[%emt 0:00:36]} Bxd5 {[%emt 0:00:07]} 36. Rxb5 {[%emt 0:01:01]} 1-0

[Event "47th GRE-chT 2019"]
[Site "Patra"]
[Date "2019.07.05"]
[Round "5.39"]
[White "Kolyvas-Dimitrakarakos, Panagiot"]
[Black "Tsarsitalidis, Konstantinos"]
[Result "1/2-1/2"]
[ECO "D85"]
[WhiteElo "1468"]
[BlackElo "2001"]
[Annotator "NA RC"]
[PlyCount "66"]
[EventDate "2019.07.02"]
[EventCountry "GRE"]
[SourceTitle "playchess.com"]
[Source "ChessBase"]
[SourceQuality "1"]
[TimeControl "5400+30"]

1. d4 {[%emt 0:00:00]} Nf6 {[%emt 0:00:00]} 2. c4 {[%emt 0:00:00]} g6 {[%emt 0:00:00]} 3. Nc3 {[%emt 0:00:00]} d5 {[%emt 0:00:00]} 4. cxd5 {[%emt 0:00:00]} Nxd5 {[%emt 0:00:00]} 5. e4 {[%emt 0:00:00]} Nxc3 {[%emt 0:00:06]} 6. bxc3 {[%emt 0:00:00]} Bg7 {[%emt 0:00:09]} 7. Bg5 {[%emt 0:00:01]} O-O {[%emt 0:01:11]} 8. Rc1 {[%emt 0:01:18]} c5 {[%emt 0:02:17]} 9. d5 {[%emt 0:02:58]} f5 {[%emt 0:02:33]} 10. Bc4 {[%emt 0:16:17]} Kh8 {[%emt 0:00:39]} 11. Qe2 {[%emt 0:23:43]} fxe4 {[%emt 0:07:40]} 12. Qxe4 {[%emt 0:05:33]} Bf5 {[%emt 0:00:05]} 13. Qe3 {[%emt 0:02:27]} Nd7 {[%emt 0:06:58]} 14. d6 {[%emt 0:19:43]} Qa5 {[%emt 0:01:26]} 15. dxe7 {[%emt 0:01:25]} Rfe8 {[%emt 0:00:17]} 16. Nf3 {[%emt 0:02:18]} Bg4 {[%emt 0:03:41]} 17. Bf7 {[%emt 0:03:48]} Bxf3 {[%emt 0:00:58]} 18. gxf3 {[%emt 0:00:03]} Qb5 {[%emt 0:12:42]} 19. f4 {[%emt 0:07:26]} Nf6 {[%emt 0:07:05]} 20. Qe6 {[%emt 0:03:54]} Ng8 {[%emt 0:05:22]} 21. Bxe8 {[%emt 0:05:08]} Rxe8 {[%emt 0:00:05]} 22. c4 {[%emt 0:02:32]} Qa5+ {[%emt 0:01:01]} 23. Kf1 {[%emt 0:00:24]} Qd2 {[%emt 0:05:39]} 24. Kg2 {[%emt 0:01:22]} Bd4 {[%emt 0:01:33]} 25. Rcf1 {[%emt 0:00:51]} Qc2 {[%emt 0:01:35]} 26. Qd7 {[%emt 0:00:34]} Qe4+ {[%emt 0:01:17]} 27. f3 {[%emt 0:00:07]} Qe2+ {[%emt 0:00:42]} 28. Kg3 {[%emt 0:00:53]} Rxe7 {[%emt 0:00:51]} 29. Bxe7 {[%emt 0:00:06]} Nxe7 {[%emt 0:00:04]} 30. Qd8+ {[%emt 0:00:52]} Kg7 {[%emt 0:00:09]} 31. Qd7 {[%emt 0:00:10]} Kh8 {[%emt 0:01:58]} 32. Qd8+ {[%emt 0:00:44]} Kg7 {[%emt 0:00:10]} 33. Qd7 {[%emt 0:00:04]} Kh8 {[%emt 0:08:35]} 1/2-1/2

[Event "47th GRE-chT 2019"]
[Site "Patra"]
[Date "2019.07.05"]
[Round "5.40"]
[White "Tsarsitalidis, Christos"]
[Black "Gioutsos, Vasileios"]
[Result "1/2-1/2"]
[ECO "C42"]
[WhiteElo "1802"]
[BlackElo "1426"]
[Annotator "NA RC"]
[PlyCount "86"]
[EventDate "2019.07.02"]
[EventCountry "GRE"]
[SourceTitle "playchess.com"]
[Source "ChessBase"]
[SourceQuality "1"]
[TimeControl "5400+30"]

1. e4 {[%emt 0:00:00]} e5 {[%emt 0:00:00]} 2. Nf3 {[%emt 0:00:00]} Nf6 {[%emt 0:00:00]} 3. Nxe5 {[%emt 0:00:00]} d6 {[%emt 0:00:00]} 4. Nf3 {[%emt 0:00:00]} Nxe4 {[%emt 0:00:00]} 5. Nc3 {[%emt 0:00:22]} Nxc3 {[%emt 0:00:00]} 6. dxc3 {[%emt 0:00:03]} Be7 {[%emt 0:00:02]} 7. Bd3 {[%emt 0:00:09]} Nc6 {[%emt 0:00:24]} 8. Be3 {[%emt 0:01:13]} Bg4 {[%emt 0:02:27]} 9. Qd2 {[%emt 0:02:53]} Bxf3 {[%emt 0:05:03]} 10. gxf3 {[%emt 0:00:10]} Qd7 {[%emt 0:00:46]} 11. O-O-O {[%emt 0:00:49]} O-O-O {[%emt 0:01:26]} 12. Bb5 {[%emt 0:02:54]} Bf6 {[%emt 0:09:02]} 13. Bxa7 {[%emt 0:01:14]} Qf5 {[%emt 0:02:51]} 14. Bxc6 {[%emt 0:00:35]} bxc6 {[%emt 0:00:06]} 15. Bd4 {[%emt 0:06:23]} Qxf3 {[%emt 0:05:55]} 16. a4 {[%emt 0:01:34]} Rhe8 {[%emt 0:07:59]} 17. Rhe1 {[%emt 0:02:11]} h6 {[%emt 0:08:46]} 18. Bxf6 {[%emt 0:06:14]} Qxf6 {[%emt 0:00:18]} 19. a5 {[%emt 0:00:29]} Re5 {[%emt 0:16:10]} 20. c4 {[%emt 0:01:59]} Rf5 {[%emt 0:13:18]} 21. Re2 {[%emt 0:03:55]} Qg5 {[%emt 0:03:54]} 22. Qxg5 {[%emt 0:01:40]} Rxg5 {[%emt 0:00:12]} 23. Re7 {[%emt 0:06:02]} Rxa5 {[%emt 0:02:37]} 24. Rxf7 {[%emt 0:00:11]} Ra1+ {[%emt 0:01:46]} 25. Kd2 {[%emt 0:00:04]} Rxd1+ {[%emt 0:00:05]} 26. Kxd1 {[%emt 0:00:05]} Rd7 {[%emt 0:00:08]} 27. Rf3 {[%emt 0:03:10]} Re7 {[%emt 0:01:48]} 28. Kd2 {[%emt 0:00:57]} Kd7 {[%emt 0:00:47]} 29. Kd3 {[%emt 0:00:42]} Re6 {[%emt 0:03:42]} 30. Rg3 {[%emt 0:08:44]} Re7 {[%emt 0:02:32]} 31. b4 {[%emt 0:00:24]} Rf7 {[%emt 0:03:36]} 32. h4 {[%emt 0:00:58]} Ke6 {[%emt 0:02:57]} 33. Ke3 {[%emt 0:01:05]} Re7 {[%emt 0:01:29]} 34. Kf4 {[%emt 0:05:10]} Rf7+ {[%emt 0:01:00]} 35. Ke4 {[%emt 0:04:13]} g5 {[%emt 0:01:43]} 36. hxg5 {[%emt 0:00:29]} hxg5 {[%emt 0:00:03]} 37. Rxg5 {[%emt 0:00:17]} Rxf2 {[%emt 0:00:05]} 38. Rg7 {[%emt 0:00:49]} Rf7 {[%emt 0:02:30]} 39. Rg2 {[%emt 0:03:38]} d5+ {[%emt 0:01:41]} 40. cxd5+ {[%emt 0:00:00]} cxd5+ {[%emt 0:00:00]} 41. Kd4 {[%emt 0:00:00]} Rf4+ {[%emt 0:00:00]} 42. Kc3 {[%emt 0:00:00]} Rc4+ {[%emt 0:00:00]} 43. Kb3 {[%emt 0:00:00]} Ke5 {[%emt 0:01:33]} 1/2-1/2

[Event "47th GRE-chT 2019"]
[Site "Patra"]
[Date "2019.07.05"]
[Round "6.1"]
[White "Macieja, Bartlomiej"]
[Black "David, Alberto"]
[Result "1-0"]
[ECO "D37"]
[WhiteElo "2500"]
[BlackElo "2553"]
[Annotator "ChessBase"]
[PlyCount "55"]
[EventDate "2019.07.02"]
[EventCountry "GRE"]
[SourceTitle "playchess.com"]
[Source "ChessBase"]
[SourceQuality "1"]
[TimeControl "5400+30"]

1. Nf3 {[%emt 0:00:53]} d5 {[%emt 0:00:17]} 2. d4 {[%emt 0:00:05]} Nf6 {[%emt 0:00:14]} 3. c4 {[%emt 0:00:01]} e6 {[%emt 0:00:06]} 4. Nc3 {[%emt 0:01:02]} dxc4 {[%emt 0:01:12]} 5. e4 {[%emt 0:12:36]} b5 {[%emt 0:01:20]} 6. e5 {[%emt 0:00:04]} Nd5 {[%emt 0:00:25]} 7. Nxb5 {[%emt 0:00:02]} Nb6 {[%emt 0:00:19]} 8. Be2 {[%emt 0:00:01]} Nc6 {[%emt 0:01:26]} 9. O-O {[%emt 0:00:02]} Be7 {[%emt 0:00:39]} 10. Na3 {[%emt 0:00:02]} Bxa3 {[%emt 0:13:15]} 11. bxa3 {[%emt 0:00:01]} Bb7 {[%emt 0:01:11]} 12. Be3 {[%emt 0:00:41]} Qd5 {[%emt 0:09:51]} 13. Qc2 {[%emt 0:09:26]} O-O {[%emt 0:08:01]} 14. Ng5 {[%emt 0:12:20]} Qxg2+ {[%emt 0:25:48]} 15. Kxg2 {[%emt 0:01:16]} Nxd4+ {[%emt 0:00:05]} 16. Qe4 {[%emt 0:00:12]} Bxe4+ {[%emt 0:00:05]} 17. Nxe4 {[%emt 0:00:03]} Nxe2 {[%emt 0:00:45]} 18. Rfe1 {[%emt 0:35:52]} Nd7 {[%emt 0:09:47]} 19. Rxe2 {[%emt 0:00:07]} Nxe5 {[%emt 0:00:05]} 20. Nd2 {[%emt 0:01:07]} c3 {[%emt 0:11:39]} 21. Nf3 {[%emt 0:04:20]} Nd3 {[%emt 0:09:24]} 22. Rc2 {[%emt 0:04:00]} Rfd8 {[%emt 0:04:17]} 23. Rxc3 {[%emt 0:00:23]} Rd7 {[%emt 0:00:19]} 24. Rb1 {[%emt 0:04:01]} e5 {[%emt 0:00:53]} 25. Ne1 {[%emt 0:02:25]} Nxe1+ {[%emt 0:00:35]} 26. Rxe1 {[%emt 0:00:02]} f5 {[%emt 0:00:07]} 27. Rc5 {[%emt 0:02:39]} Re8 {[%emt 0:00:40]} 28. Bf4 {[%emt 0:00:50]} 1-0

[Event "47th GRE-chT 2019"]
[Site "Patra"]
[Date "2019.07.05"]
[Round "6.2"]
[White "Safarli, Eltaj"]
[Black "Pancevski, Filip"]
[Result "1/2-1/2"]
[ECO "C95"]
[WhiteElo "2608"]
[BlackElo "2514"]
[Annotator "RC"]
[PlyCount "126"]
[EventDate "2019.07.02"]
[EventCountry "GRE"]
[SourceTitle "playchess.com"]
[Source "ChessBase"]
[SourceQuality "1"]
[TimeControl "5400+30"]

1. e4 {[%emt 0:00:00]} e5 {[%emt 0:03:26]} 2. Nf3 {[%emt 0:00:00]} Nc6 {[%emt 0:00:04]} 3. Bb5 {[%emt 0:00:00]} a6 {[%emt 0:00:05]} 4. Ba4 {[%emt 0:00:00]} Nf6 {[%emt 0:00:07]} 5. O-O {[%emt 0:00:00]} Be7 {[%emt 0:00:43]} 6. Re1 {[%emt 0:00:05]} b5 {[%emt 0:00:02]} 7. Bb3 {[%emt 0:00:04]} d6 {[%emt 0:00:03]} 8. c3 {[%emt 0:00:06]} O-O {[%emt 0:00:03]} 9. h3 {[%emt 0:00:10]} Nb8 {[%emt 0:00:24]} 10. d4 {[%emt 0:00:02]} Nbd7 {[%emt 0:04:17]} 11. c4 {[%emt 0:00:07]} c6 {[%emt 0:00:03]} 12. Nc3 {[%emt 0:00:11]} b4 {[%emt 0:00:03]} 13. Ne2 {[%emt 0:00:09]} Nxe4 {[%emt 0:00:18]} 14. Qc2 {[%emt 0:00:44]} Nef6 {[%emt 0:02:23]} 15. Ng3 {[%emt 0:00:06]} c5 {[%emt 0:01:23]} 16. dxe5 {[%emt 0:00:09]} Nxe5 {[%emt 0:00:06]} 17. Nxe5 {[%emt 0:00:06]} dxe5 {[%emt 0:01:58]} 18. Rxe5 {[%emt 0:00:09]} Bd6 {[%emt 0:03:10]} 19. Re2 {[%emt 0:01:09]} Qc7 {[%emt 0:08:54]} 20. Nf5 {[%emt 0:01:12]} Bxf5 {[%emt 0:03:37]} 21. Qxf5 {[%emt 0:00:10]} Rfe8 {[%emt 0:04:34]} 22. Be3 {[%emt 0:05:25]} Re6 {[%emt 0:13:12]} 23. Qf3 {[%emt 0:08:09]} Rd8 {[%emt 0:07:52]} 24. Rae1 {[%emt 0:27:19]} Nd7 {[%emt 0:04:55]} 25. Bg5 {[%emt 0:03:17]} Ne5 {[%emt 0:12:41]} 26. Qe4 {[%emt 0:24:54]} Be7 {[%emt 0:01:38]} 27. Bf4 {[%emt 0:00:04]} Bf6 {[%emt 0:06:34]} 28. Bc2 {[%emt 0:01:55]} g6 {[%emt 0:04:35]} 29. Qe3 {[%emt 0:10:06]} Qe7 {[%emt 0:02:05]} 30. Qg3 {[%emt 0:00:50]} Bh4 {[%emt 0:00:20]} 31. Qb3 {[%emt 0:00:51]} Bf6 {[%emt 0:02:55]} 32. Bf5 {[%emt 0:07:50]} gxf5 {[%emt 0:00:08]} 33. Bxe5 {[%emt 0:01:35]} Bg7 {[%emt 0:11:38]} 34. Bxg7 {[%emt 0:00:23]} Rxe2 {[%emt 0:00:12]} 35. Rxe2 {[%emt 0:00:07]} Qxe2 {[%emt 0:00:03]} 36. Qg3 {[%emt 0:02:14]} Qd1+ {[%emt 0:00:01]} 37. Kh2 {[%emt 0:00:05]} Qd6 {[%emt 0:00:18]} 38. Be5+ {[%emt 0:00:04]} Qg6 {[%emt 0:01:47]} 39. Qe3 {[%emt 0:00:38]} Rc8 {[%emt 0:00:00]} 40. Bc7 {[%emt 0:00:00]} Qe6 {[%emt 0:00:00]} 41. Qg3+ {[%emt 0:00:00]} Kf8 {[%emt 0:00:00]} 42. Qh4 {[%emt 0:00:00]} h6 {[%emt 0:00:00]} 43. b3 {[%emt 0:00:00]} Kg7 {[%emt 0:00:00]} 44. Bg3 {[%emt 0:00:00]} Qe4 {[%emt 0:00:00]} 45. Bf4 {[%emt 0:00:00]} Rc6 {[%emt 0:00:00]} 46. f3 {[%emt 0:00:00]} Qe2 {[%emt 0:00:00]} 47. Bg3 {[%emt 0:07:10]} Qe6 {[%emt 0:00:00]} 48. Qf4 {[%emt 0:00:04]} Kh7 {[%emt 0:00:00]} 49. Qb8 {[%emt 0:01:09]} Qc8 {[%emt 0:00:00]} 50. Qe5 {[%emt 0:00:03]} Qe6 {[%emt 0:00:00]} 51. Qb8 {[%emt 0:00:20]} Rc8 {[%emt 0:00:00]} 52. Qf4 {[%emt 0:02:03]} a5 {[%emt 0:00:04]} 53. Bf2 {[%emt 0:01:12]} Rc6 {[%emt 0:00:14]} 54. Bg3 {[%emt 0:00:28]} a4 {[%emt 0:00:29]} 55. bxa4 {[%emt 0:00:01]} Ra6 {[%emt 0:01:25]} 56. Qb8 {[%emt 0:01:05]} Rxa4 {[%emt 0:01:32]} 57. Be5 {[%emt 0:00:18]} f6 {[%emt 0:01:35]} 58. Bf4 {[%emt 0:01:43]} Qxc4 {[%emt 0:02:14]} 59. Be3 {[%emt 0:02:35]} Qe6 {[%emt 0:00:39]} 60. Qf8 {[%emt 0:00:35]} Rxa2 {[%emt 0:00:11]} 61. Qxh6+ {[%emt 0:00:01]} Kg8 {[%emt 0:00:06]} 62. Qg6+ {[%emt 0:00:15]} Kh8 {[%emt 0:01:13]} 63. Qh6+ {[%emt 0:00:01]} Kg8 {[%emt 0:05:11]} 1/2-1/2

[Event "47th GRE-chT 2019"]
[Site "Patra"]
[Date "2019.07.05"]
[Round "6.2"]
[White "Theodorou, Nikolas"]
[Black "Mihailidis, Anastasios"]
[Result "1-0"]
[ECO "D02"]
[WhiteElo "2543"]
[BlackElo "2270"]
[Annotator "ChessBase"]
[PlyCount "57"]
[EventDate "2019.07.02"]
[EventCountry "GRE"]
[SourceTitle "playchess.com"]
[Source "ChessBase"]
[SourceQuality "1"]
[TimeControl "5400+30"]

1. d4 {[%emt 0:00:00]} d5 {[%emt 0:00:00]} 2. Nf3 {[%emt 0:00:00]} Nf6 {[%emt 0:00:17]} 3. c4 {[%emt 0:00:06]} e6 {[%emt 0:00:16]} 4. g3 {[%emt 0:00:09]} Bb4+ {[%emt 0:00:15]} 5. Nc3 {[%emt 0:03:10]} O-O {[%emt 0:02:06]} 6. Bg2 {[%emt 0:00:08]} c6 {[%emt 0:03:22]} 7. O-O {[%emt 0:00:53]} Nbd7 {[%emt 0:01:47]} 8. Qc2 {[%emt 0:03:10]} b6 {[%emt 0:00:52]} 9. Rd1 {[%emt 0:01:56]} Bb7 {[%emt 0:01:45]} 10. Bf4 {[%emt 0:01:39]} Rc8 {[%emt 0:03:21]} 11. Rac1 {[%emt 0:03:36]} Qe7 {[%emt 0:03:30]} 12. Ne5 {[%emt 0:09:51]} Nh5 {[%emt 0:13:26]} 13. Bd2 {[%emt 0:03:26]} Bd6 {[%emt 0:07:04]} 14. Nxd7 {[%emt 0:01:50]} Qxd7 {[%emt 0:00:05]} 15. e4 {[%emt 0:00:05]} f5 {[%emt 0:20:55]} 16. exf5 {[%emt 0:09:35]} exf5 {[%emt 0:02:03]} 17. cxd5 {[%emt 0:00:11]} c5 {[%emt 0:09:05]} 18. dxc5 {[%emt 0:00:27]} Bxc5 {[%emt 0:00:10]} 19. Qa4 {[%emt 0:00:10]} Qf7 {[%emt 0:02:35]} 20. b4 {[%emt 0:06:54]} Bd6 {[%emt 0:09:03]} 21. Qxa7 {[%emt 0:04:08]} f4 {[%emt 0:04:24]} 22. Ne4 {[%emt 0:00:17]} fxg3 {[%emt 0:04:33]} 23. hxg3 {[%emt 0:06:28]} Bxg3 {[%emt 0:03:53]} 24. fxg3 {[%emt 0:05:18]} Nxg3 {[%emt 0:01:08]} 25. Nxg3 {[%emt 0:01:29]} Qf2+ {[%emt 0:00:30]} 26. Kh1 {[%emt 0:01:20]} Rxc1 {[%emt 0:05:25]} 27. Bxc1 {[%emt 0:00:39]} Qxg3 {[%emt 0:01:02]} 28. Qxb6 {[%emt 0:00:16]} Rf2 {[%emt 0:00:09]} 29. Qe6+ {[%emt 0:00:51]} 1-0

[Event "47th GRE-chT 2019"]
[Site "Patra"]
[Date "2019.07.05"]
[Round "6.3"]
[White "Ioannidis, Evgenios"]
[Black "Halkias, Stelios"]
[Result "1/2-1/2"]
[ECO "A34"]
[WhiteElo "2378"]
[BlackElo "2553"]
[Annotator "ChessBase"]
[PlyCount "83"]
[EventDate "2019.07.02"]
[EventCountry "GRE"]
[SourceTitle "playchess.com"]
[Source "ChessBase"]
[SourceQuality "1"]
[TimeControl "5400+30"]

1. c4 {[%emt 0:00:00]} c5 {[%emt 0:03:10]} 2. Nf3 {[%emt 0:00:10]} Nc6 {[%emt 0:00:11]} 3. Nc3 {[%emt 0:00:37]} e5 {[%emt 0:00:49]} 4. e3 {[%emt 0:01:15]} Nf6 {[%emt 0:00:08]} 5. d4 {[%emt 0:00:27]} e4 {[%emt 0:00:30]} 6. d5 {[%emt 0:00:38]} exf3 {[%emt 0:00:38]} 7. dxc6 {[%emt 0:00:09]} dxc6 {[%emt 0:03:20]} 8. Qxd8+ {[%emt 0:01:41]} Kxd8 {[%emt 0:00:35]} 9. gxf3 {[%emt 0:00:00]} g6 {[%emt 0:03:41]} 10. b3 {[%emt 0:02:22]} Bg7 {[%emt 0:03:08]} 11. Bb2 {[%emt 0:00:29]} b6 {[%emt 0:09:57]} 12. Bd3 {[%emt 0:11:07]} Ke7 {[%emt 0:05:22]} 13. Ke2 {[%emt 0:01:33]} Rd8 {[%emt 0:07:08]} 14. Rad1 {[%emt 0:02:51]} Be6 {[%emt 0:03:41]} 15. Ne4 {[%emt 0:02:08]} Ne8 {[%emt 0:04:53]} 16. Bxg7 {[%emt 0:01:42]} Nxg7 {[%emt 0:00:04]} 17. Ng5 {[%emt 0:02:17]} f6 {[%emt 0:28:03]} 18. Nxe6 {[%emt 0:07:04]} Kxe6 {[%emt 0:00:05]} 19. Be4 {[%emt 0:04:44]} Rd6 {[%emt 0:00:49]} 20. f4 {[%emt 0:01:38]} f5 {[%emt 0:03:18]} 21. Bf3 {[%emt 0:00:45]} Ne8 {[%emt 0:00:49]} 22. h4 {[%emt 0:06:42]} Nf6 {[%emt 0:00:11]} 23. Rxd6+ {[%emt 0:00:11]} Kxd6 {[%emt 0:00:02]} 24. h5 {[%emt 0:00:16]} Kc7 {[%emt 0:02:30]} 25. hxg6 {[%emt 0:00:13]} hxg6 {[%emt 0:00:02]} 26. Rh6 {[%emt 0:00:21]} Rg8 {[%emt 0:00:22]} 27. Kd3 {[%emt 0:00:30]} b5 {[%emt 0:07:35]} 28. Kc2 {[%emt 0:00:15]} a6 {[%emt 0:00:47]} 29. Be2 {[%emt 0:02:42]} Kb6 {[%emt 0:02:19]} 30. f3 {[%emt 0:02:57]} Ne8 {[%emt 0:03:30]} 31. e4 {[%emt 0:03:13]} Nc7 {[%emt 0:06:35]} 32. exf5 {[%emt 0:05:49]} gxf5 {[%emt 0:00:02]} 33. Bd3 {[%emt 0:00:35]} Rf8 {[%emt 0:01:08]} 34. Kc3 {[%emt 0:05:32]} Ne8 {[%emt 0:00:44]} 35. a3 {[%emt 0:09:48]} Rf7 {[%emt 0:00:46]} 36. Re6 {[%emt 0:06:54]} Ng7 {[%emt 0:00:19]} 37. Re5 {[%emt 0:00:15]} a5 {[%emt 0:00:44]} 38. a4 {[%emt 0:14:03]} b4+ {[%emt 0:00:22]} 39. Kd2 {[%emt 0:00:36]} Rf6 {[%emt 0:00:33]} 40. Ke3 {[%emt 0:00:00]} Rf7 {[%emt 0:00:00]} 41. Kf2 {[%emt 0:00:00]} Rf6 {[%emt 0:00:00]} 42. Ke3 {[%emt 0:00:00]} 1/2-1/2

[Event "47th GRE-chT 2019"]
[Site "Patra"]
[Date "2019.07.05"]
[Round "6.3"]
[White "Fragkos, Vasilios"]
[Black "Naoum, Spyridon"]
[Result "1/2-1/2"]
[ECO "A45"]
[WhiteElo "2044"]
[BlackElo "2299"]
[Annotator "NA"]
[PlyCount "113"]
[EventDate "2019.07.02"]
[EventCountry "GRE"]
[SourceTitle "playchess.com"]
[Source "ChessBase"]
[SourceQuality "1"]
[TimeControl "5400+30"]

1. d4 {[%emt 0:00:38]} Nf6 {[%emt 0:00:08]} 2. Bg5 {[%emt 0:00:18]} g6 {[%emt 0:00:57]} 3. Bxf6 {[%emt 0:00:06]} exf6 {[%emt 0:00:06]} 4. e3 {[%emt 0:00:03]} d5 {[%emt 0:02:38]} 5. g3 {[%emt 0:00:59]} Bd6 {[%emt 0:06:07]} 6. Bg2 {[%emt 0:00:13]} c6 {[%emt 0:00:07]} 7. Ne2 {[%emt 0:00:38]} Be6 {[%emt 0:00:15]} 8. Nd2 {[%emt 0:01:37]} Nd7 {[%emt 0:01:05]} 9. e4 {[%emt 0:18:07]} dxe4 {[%emt 0:03:30]} 10. Nxe4 {[%emt 0:00:06]} Bc7 {[%emt 0:00:19]} 11. O-O {[%emt 0:13:53]} f5 {[%emt 0:06:24]} 12. N4c3 {[%emt 0:00:19]} Nb6 {[%emt 0:02:34]} 13. Re1 {[%emt 0:03:10]} Qf6 {[%emt 0:01:55]} 14. a4 {[%emt 0:08:07]} a5 {[%emt 0:06:02]} 15. Qd2 {[%emt 0:08:17]} O-O-O {[%emt 0:18:57]} 16. Qh6 {[%emt 0:04:10]} Rhe8 {[%emt 0:05:24]} 17. Rad1 {[%emt 0:01:46]} Bc4 {[%emt 0:00:59]} 18. b3 {[%emt 0:02:43]} Bxe2 {[%emt 0:00:48]} 19. Rxe2 {[%emt 0:02:00]} f4 {[%emt 0:06:39]} 20. Rxe8 {[%emt 0:03:53]} Rxe8 {[%emt 0:02:04]} 21. Ne4 {[%emt 0:03:01]} Qh8 {[%emt 0:00:51]} 22. Ng5 {[%emt 0:04:15]} Kb8 {[%emt 0:06:58]} 23. Nxf7 {[%emt 0:08:34]} Qf6 {[%emt 0:00:37]} 24. Ne5 {[%emt 0:05:50]} Qf5 {[%emt 0:02:41]} 25. Rd3 {[%emt 0:02:47]} fxg3 {[%emt 0:04:56]} 26. hxg3 {[%emt 0:00:01]} Bxe5 {[%emt 0:00:09]} 27. dxe5 {[%emt 0:00:17]} Rxe5 {[%emt 0:01:36]} 28. Qd2 {[%emt 0:01:56]} Re8 {[%emt 0:04:29]} 29. Rf3 {[%emt 0:02:28]} Qd5 {[%emt 0:03:40]} 30. Rd3 {[%emt 0:00:20]} Qc5 {[%emt 0:01:34]} 31. Rd8+ {[%emt 0:01:26]} Rxd8 {[%emt 0:00:05]} 32. Qxd8+ {[%emt 0:00:03]} Ka7 {[%emt 0:00:06]} 33. Qd2 {[%emt 0:01:19]} Nd5 {[%emt 0:01:53]} 34. Bxd5 {[%emt 0:00:14]} Qxd5 {[%emt 0:03:51]} 35. Qe3+ {[%emt 0:00:46]} c5 {[%emt 0:00:28]} 36. Qc3 {[%emt 0:02:34]} Kb6 {[%emt 0:02:59]} 37. Qf6+ {[%emt 0:00:12]} Qc6 {[%emt 0:00:09]} 38. Qd8+ {[%emt 0:00:16]} Qc7 {[%emt 0:00:01]} 39. Qf6+ {[%emt 0:00:13]} Ka7 {[%emt 0:00:22]} 40. Qe6 {[%emt 0:00:00]} Qg7 {[%emt 0:00:00]} 41. Qc4 {[%emt 0:00:00]} Qe5 {[%emt 0:00:00]} 42. Qd3 {[%emt 0:00:00]} Qe6 {[%emt 0:00:00]} 43. Kg2 {[%emt 0:00:00]} Qc6+ {[%emt 0:00:00]} 44. f3 {[%emt 0:00:00]} c4 {[%emt 0:00:00]} 45. Qc3 {[%emt 0:02:35]} Ka6 {[%emt 0:00:00]} 46. g4 {[%emt 0:00:27]} cxb3 {[%emt 0:00:00]} 47. Qxb3 {[%emt 0:00:03]} b5 {[%emt 0:00:00]} 48. Qd3 {[%emt 0:00:51]} Kb6 {[%emt 0:00:00]} 49. Qd4+ {[%emt 0:00:47]} Kb7 {[%emt 0:00:00]} 50. axb5 {[%emt 0:01:04]} Qxc2+ {[%emt 0:01:18]} 51. Kh3 {[%emt 0:00:30]} a4 {[%emt 0:01:23]} 52. Qd6 {[%emt 0:00:31]} Qc3 {[%emt 0:01:51]} 53. Qa6+ {[%emt 0:00:31]} Kb8 {[%emt 0:00:57]} 54. Qb6+ {[%emt 0:00:33]} Kc8 {[%emt 0:00:27]} 55. Qa6+ {[%emt 0:00:01]} Kb8 {[%emt 0:00:38]} 56. Qb6+ {[%emt 0:00:07]} Kc8 {[%emt 0:00:04]} 57. Qa6+ {[%emt 0:00:02]} 1/2-1/2